bitfinex-derivatives/quotes_BTCF0:USTF0_20250629
["timestamp","ask_amount","ask_price","bid_price","bid_amount"]
[1751194964393,0.19154,108250.0,108240.0,0.4549]
[1751194965896,0.15944,108250.0,108240.0,0.4549]
[1751194966292,0.15944,108250.0,108240.0,0.0941]
[1751194966492,0.15944,108250.0,108240.0,0.4549]
[1751194967393,0.12824,108250.0,108240.0,0.4549]
[1751194976600,0.12824,108250.0,108240.0,0.0941]
[1751194976792,0.12824,108250.0,108240.0,0.4549]
[1751194984304,0.12824,108250.0,108240.0,0.0941]
[1751194984507,0.12824,108250.0,108240.0,0.4549]
[1751194987105,0.12824,108250.0,108240.0,0.48256734]
[1751194988207,0.6866,108250.0,108240.0,0.48256734]
[1751194988709,0.029,108260.0,108240.0,0.48256734]
[1751194989008,0.029,108260.0,108250.0,0.4549]
[1751194989308,0.71564,108260.0,108250.0,0.4549]
[1751194990111,0.71764,108260.0,108250.0,0.4549]
[1751194990306,0.031,108260.0,108250.0,0.4549]
[1751194990510,0.71756,108260.0,108250.0,0.4549]
[1751194990708,0.71856,108260.0,108250.0,0.4549]
[1751194992505,0.71756,108260.0,108250.0,0.4549]
[1751194993713,0.71556,108260.0,108250.0,0.4549]
[1751195002925,0.71556,108260.0,108250.0,0.0941]
[1751195003124,0.71556,108260.0,108250.0,0.4549]
[1751195005526,0.1572,108260.0,108250.0,0.4549]
[1751195006928,0.1572,108260.0,108250.0,0.0941]
[1751195007132,0.1572,108260.0,108250.0,0.8157]
[1751195008229,0.1572,108260.0,108250.0,0.0941]
[1751195008436,0.1572,108260.0,108250.0,0.8157]
[1751195012633,0.1572,108260.0,108250.0,0.0941]
[1751195012832,0.1572,108260.0,108250.0,0.8157]
[1751195014333,0.1572,108260.0,108250.0,0.0941]
[1751195014540,0.1572,108260.0,108250.0,0.8157]
[1751195016136,0.1572,108260.0,108250.0,0.84336734]
[1751195017137,0.1572,108260.0,108250.0,0.8157]
[1751195020236,0.23113096,108260.0,108250.0,0.8157]
[1751195022242,0.23113096,108260.0,108250.0,0.0941]
[1751195022443,0.23113096,108260.0,108250.0,0.8157]
[1751195027139,0.23113096,108260.0,108250.0,0.84336734]
[1751195027140,0.1572,108260.0,108250.0,0.84336734]
[1751195031049,0.1572,108260.0,108250.0,0.12176734]
[1751195031239,0.1572,108260.0,108250.0,0.84336734]
[1751195033153,0.1572,108260.0,108250.0,0.12176734]
[1751195033451,0.1572,108260.0,108250.0,0.84336734]
[1751195036653,0.1572,108260.0,108250.0,0.12176734]
[1751195036854,0.1572,108260.0,108250.0,0.84336734]
[1751195037249,0.1572,108260.0,108250.0,0.12176734]
[1751195037754,0.1572,108260.0,108250.0,0.84336734]
[1751195038153,0.1572,108260.0,108250.0,0.12176734]
[1751195038353,0.1572,108260.0,108250.0,0.84336734]
[1751195038654,0.1572,108260.0,108250.0,0.8157]
[1751195042152,0.1572,108260.0,108250.0,0.0941]
[1751195042455,0.1572,108260.0,108250.0,0.8157]
[1751195046264,0.1572,108260.0,108250.0,0.0941]
[1751195046466,0.1572,108260.0,108250.0,0.8157]
[1751195047259,0.1572,108260.0,108250.0,0.84336734]
[1751195049558,0.1572,108260.0,108250.0,0.12176734]
[1751195049755,0.1572,108260.0,108250.0,0.84336734]
[1751195049962,0.1572,108260.0,108250.0,0.12176734]
[1751195050260,0.1572,108260.0,108250.0,0.84336734]
[1751195053966,0.1572,108260.0,108250.0,0.12176734]
[1751195054259,0.1572,108260.0,108250.0,0.84336734]
[1751195055666,0.1572,108260.0,108250.0,0.12176734]
[1751195055861,0.1572,108260.0,108250.0,0.84336734]
[1751195056664,0.1572,108260.0,108250.0,0.12176734]
[1751195056970,0.1572,108260.0,108250.0,0.84336734]
[1751195057272,0.23113096,108260.0,108250.0,0.8157]
[1751195058268,0.23113096,108260.0,108250.0,0.0941]
[1751195058469,0.23113096,108260.0,108250.0,0.8157]
[1751195061572,0.23113096,108260.0,108250.0,0.0941]
[1751195061870,0.23113096,108260.0,108250.0,0.8157]
[1751195063171,0.23113096,108260.0,108250.0,0.0941]
[1751195063364,0.23113096,108260.0,108250.0,0.8157]
[1751195063971,0.23113096,108260.0,108250.0,0.0941]
[1751195064176,0.23113096,108260.0,108250.0,0.8157]
[1751195067178,0.1572,108260.0,108250.0,0.12176734]
[1751195067380,0.1572,108260.0,108250.0,0.84336734]
[1751195068983,0.1572,108260.0,108250.0,0.12176734]
[1751195069184,0.1572,108260.0,108250.0,0.84336734]
[1751195074874,0.1572,108260.0,108250.0,0.12176734]
[1751195075081,0.1572,108260.0,108250.0,0.84336734]
[1751195075882,0.1572,108260.0,108250.0,0.12176734]
[1751195076177,0.1572,108260.0,108250.0,0.84336734]
[1751195077877,0.1572,108260.0,108250.0,0.12176734]
[1751195078076,0.1572,108260.0,108250.0,0.84336734]
[1751195078276,0.1572,108260.0,108250.0,0.12176734]
[1751195078482,0.1572,108260.0,108250.0,0.84336734]
[1751195103603,0.1572,108260.0,108250.0,0.12176734]
[1751195103903,0.1572,108260.0,108250.0,0.84336734]
[1751195105003,0.1572,108260.0,108250.0,0.12176734]
[1751195105304,0.1572,108260.0,108250.0,0.84336734]
[1751195106905,0.1572,108260.0,108250.0,0.12176734]
[1751195107105,0.1572,108260.0,108250.0,0.84336734]
[1751195107301,0.1572,108260.0,108250.0,0.8157]
[1751195113811,0.029,108260.0,108250.0,0.8157]
[1751195114013,0.15688,108260.0,108250.0,0.8157]
[1751195114614,0.15688,108260.0,108250.0,0.0941]
[1751195114809,0.15688,108260.0,108250.0,0.8157]
[1751195117217,0.15688,108260.0,108250.0,0.84336734]
[1751195117608,0.15688,108260.0,108250.0,0.12176734]
[1751195117811,0.15688,108260.0,108250.0,0.84336734]
[1751195118618,0.15688,108260.0,108250.0,0.12176734]
[1751195119116,0.15688,108260.0,108250.0,0.84336734]
[1751195123620,0.15688,108260.0,108250.0,0.12176734]
[1751195123820,0.15688,108260.0,108250.0,0.84336734]
[1751195124922,0.15688,108260.0,108250.0,0.12176734]
[1751195125222,0.15688,108260.0,108250.0,0.84336734]
[1751195130120,0.15688,108260.0,108250.0,0.12176734]
[1751195130324,0.15688,108260.0,108250.0,0.84336734]
[1751195131720,0.15688,108260.0,108250.0,0.81176734]
[1751195132024,0.15688,108260.0,108240.0,0.45366734]
[1751195132025,0.24818,108260.0,108240.0,0.45366734]
[1751195132226,0.24818,108260.0,108240.0,0.48496734]
[1751195132930,0.24918,108260.0,108240.0,0.48496734]
[1751195133825,0.25118,108260.0,108240.0,0.48496734]
[1751195140026,0.32511096,108260.0,108240.0,0.48496734]
[1751195140327,0.32511096,108260.0,108240.0,0.4573]
[1751195140631,0.25118,108260.0,108240.0,0.4573]
[1751195142926,0.25118,108260.0,108240.0,0.0965]
[1751195143131,0.25118,108260.0,108240.0,0.4573]
[1751195144030,0.25118,108260.0,108240.0,0.0965]
[1751195144218,0.25118,108260.0,108240.0,0.4573]
[1751195146232,0.25118,108260.0,108240.0,0.0965]
[1751195146420,0.25118,108260.0,108240.0,0.4573]
[1751195147231,0.32511096,108260.0,108240.0,0.4573]
[1751195147921,0.32511096,108260.0,108240.0,0.0965]
[1751195148126,0.32511096,108260.0,108240.0,0.4573]
[1751195152430,0.32511096,108260.0,108250.0,0.032]
[1751195153433,0.32311096,108260.0,108250.0,0.032]
[1751195153635,0.32511096,108260.0,108250.0,0.032]
[1751195155034,0.32511096,108260.0,108240.0,0.033]
[1751195155234,0.32511096,108260.0,108240.0,0.3938]
[1751195156038,0.32311096,108260.0,108240.0,0.3938]
[1751195156236,0.32511096,108260.0,108240.0,0.3938]
[1751195156431,0.55764,108250.0,108240.0,0.3938]
[1751195156637,0.58834,108250.0,108240.0,0.3938]
[1751195157243,0.66227096,108250.0,108240.0,0.3938]
[1751195157634,0.66227096,108250.0,108240.0,0.033]
[1751195157832,0.95155136,108250.0,108230.0,0.3608]
[1751195158132,0.12784,108240.0,108230.0,0.3917]
[1751195158431,0.12784,108240.0,108230.0,0.4231]
[1751195159837,0.12784,108240.0,108230.0,0.4251]
[1751195160737,0.12784,108240.0,108230.0,0.4261]
[1751195160936,0.20201008,108240.0,108230.0,0.4261]
[1751195161537,0.20201008,108240.0,108230.0,0.4574]
[1751195166249,0.27594104,108240.0,108230.0,0.4574]
[1751195166744,0.20201008,108240.0,108230.0,0.4574]
[1751195167946,0.20201008,108240.0,108230.0,0.0966]
[1751195168147,0.20201008,108240.0,108230.0,0.4574]
[1751195173951,0.20201008,108240.0,108230.0,0.0966]
[1751195174351,0.20201008,108240.0,108230.0,0.4574]
[1751195175348,1.64347459,108240.0,108210.0,0.08150929]
[1751195175552,0.9184,108230.0,108220.0,0.0324]
[1751195175752,0.9184,108230.0,108220.0,0.0942]
[1751195175944,1.02561031,108230.0,108220.0,0.0942]
[1751195176143,0.9184,108230.0,108220.0,0.0942]
[1751195177050,0.9184,108230.0,108220.0,0.0982]
[1751195177754,0.3608,108230.0,108220.0,0.0982]
[1751195177955,1.0462,108230.0,108220.0,0.1012]
[1751195178147,0.6854,108230.0,108220.0,0.1012]
[1751195178748,0.69558087,108230.0,108220.0,0.1012]
[1751195205767,0.69562087,108230.0,108220.0,0.1012]
[1751195207379,0.72602087,108230.0,108220.0,0.12891246]
[1751195215277,0.72602087,108230.0,108220.0,0.1012]
[1751195216278,0.72602087,108230.0,108220.0,0.12891246]
[1751195231797,0.72602087,108230.0,108220.0,0.0702]
[1751195231994,0.75672087,108230.0,108220.0,0.06711246]
[1751195232193,0.78672087,108230.0,108220.0,0.06711246]
[1751195233595,0.78672087,108230.0,108220.0,0.03471246]
[1751195234189,0.78672087,108230.0,108220.0,0.007]
[1751195237096,1.14752087,108230.0,108220.0,0.007]
[1751195237595,0.78672087,108230.0,108220.0,0.007]
[1751195237800,1.14752087,108230.0,108220.0,0.007]
[1751195241100,1.14752087,108230.0,108220.0,0.069]
[1751195241500,1.11752087,108230.0,108220.0,0.069]
[1751195242101,0.75672087,108230.0,108220.0,0.069]
[1751195242298,1.11752087,108230.0,108220.0,0.069]
[1751195244002,1.08682087,108230.0,108220.0,0.069]
[1751195244300,1.08682087,108230.0,108220.0,0.1014]
[1751195247301,0.72602087,108230.0,108220.0,0.1014]
[1751195247602,1.08682087,108230.0,108220.0,0.1014]
[1751195249100,0.72602087,108230.0,108220.0,0.1014]
[1751195249403,1.08682087,108230.0,108220.0,0.1014]
[1751195250003,0.72602087,108230.0,108220.0,0.1014]
[1751195250302,1.08670087,108230.0,108220.0,0.1014]
[1751195252902,1.09170087,108230.0,108220.0,0.0984]
[1751195254000,0.73090087,108230.0,108220.0,0.0984]
[1751195254405,1.09170087,108230.0,108220.0,0.0984]
[1751195254606,1.09270087,108230.0,108220.0,0.0944]
[1751195255306,1.08770087,108230.0,108220.0,0.0944]
[1751195260112,0.72690087,108230.0,108220.0,0.0944]
[1751195260313,1.08770087,108230.0,108220.0,0.0944]
[1751195260611,0.72690087,108230.0,108220.0,0.0944]
[1751195260812,1.08770087,108230.0,108220.0,0.0944]
[1751195264911,0.72690087,108230.0,108220.0,0.0944]
[1751195265416,1.08770087,108230.0,108220.0,0.0944]
[1751195265610,0.72690087,108230.0,108220.0,0.0944]
[1751195265816,1.08770087,108230.0,108220.0,0.0944]
[1751195266214,0.72690087,108230.0,108220.0,0.0944]
[1751195266413,1.08770087,108230.0,108220.0,0.0944]
[1751195267211,0.72690087,108230.0,108220.0,0.0944]
[1751195267406,1.08770087,108230.0,108220.0,0.0944]
[1751195268012,0.72690087,108230.0,108220.0,0.0944]
[1751195268213,1.08770087,108230.0,108220.0,0.0944]
[1751195270921,0.72690087,108230.0,108220.0,0.0944]
[1751195271418,1.08770087,108230.0,108220.0,0.0944]
[1751195272119,0.72690087,108230.0,108220.0,0.0944]
[1751195272320,1.08770087,108230.0,108220.0,0.0944]
[1751195275118,0.72690087,108230.0,108220.0,0.0944]
[1751195275318,1.08770087,108230.0,108220.0,0.0944]
[1751195277221,0.72690087,108230.0,108220.0,0.0944]
[1751195277409,1.08770087,108230.0,108220.0,0.0944]
[1751195277915,0.72690087,108230.0,108220.0,0.0944]
[1751195278120,1.08770087,108230.0,108220.0,0.0944]
[1751195279920,0.72690087,108230.0,108220.0,0.0944]
[1751195280120,1.08770087,108230.0,108220.0,0.0944]
[1751195285125,0.72690087,108230.0,108220.0,0.0944]
[1751195285325,1.08770087,108230.0,108220.0,0.0944]
[1751195286921,0.72690087,108230.0,108220.0,0.0944]
[1751195287325,1.08770087,108230.0,108220.0,0.0944]
[1751195289929,0.72690087,108230.0,108220.0,0.0944]
[1751195290125,1.08770087,108230.0,108220.0,0.0944]
[1751195290325,0.72690087,108230.0,108220.0,0.0944]
[1751195290526,1.08770087,108230.0,108220.0,0.0944]
[1751195293030,0.72690087,108230.0,108220.0,0.0944]
[1751195293332,1.08770087,108230.0,108220.0,0.0944]
[1751195294031,0.72690087,108230.0,108220.0,0.0944]
[1751195294331,1.08770087,108230.0,108220.0,0.0944]
[1751195296631,0.72690087,108230.0,108220.0,0.0944]
[1751195296830,1.08770087,108230.0,108220.0,0.0944]
[1751195299024,0.72690087,108230.0,108220.0,0.0944]
[1751195299330,1.08770087,108230.0,108220.0,0.0944]
[1751195299937,0.72690087,108230.0,108220.0,0.0944]
[1751195300139,1.08770087,108230.0,108220.0,0.0944]
[1751195304636,0.72690087,108230.0,108220.0,0.0944]
[1751195304837,1.08770087,108230.0,108220.0,0.0944]
[1751195307038,0.72690087,108230.0,108220.0,0.0944]
[1751195307233,1.08770087,108230.0,108220.0,0.0944]
[1751195309537,1.16153307,108230.0,108220.0,0.0944]
[1751195310942,0.80073307,108230.0,108220.0,0.0944]
[1751195311146,1.16153307,108230.0,108220.0,0.0944]
[1751195314439,1.26445858,108230.0,108200.0,0.0647116]
[1751195314746,0.3608,108210.0,108200.0,0.05813354]
[1751195314933,1.04588,108210.0,108200.0,0.05813354]
[1751195315137,1.10948,108210.0,108200.0,0.05813354]
[1751195315741,1.10948,108210.0,108200.0,0.06413354]
[1751195317347,1.10948,108210.0,108200.0,0.06313354]
[1751195317545,1.10948,108210.0,108200.0,0.03673354]
[1751195317943,1.10948,108210.0,108200.0,0.0403]
[1751195318642,1.10948,108210.0,108200.0,0.0373]
[1751195318844,1.10948,108210.0,108200.0,0.0333]
[1751195319254,0.4244,108210.0,108200.0,0.0333]
[1751195319445,1.10956,108210.0,108200.0,0.0333]
[1751195319642,1.10956,108210.0,108200.0,0.0980116]
[1751195320256,1.10956,108210.0,108200.0,0.06103354]
[1751195324960,0.74876,108210.0,108200.0,0.06103354]
[1751195325162,1.10956,108210.0,108200.0,0.06103354]
[1751195325656,1.10956,108210.0,108200.0,0.0333]
[1751195331868,1.10956,108210.0,108200.0,0.0982]
[1751195332167,0.74876,108210.0,108200.0,0.0982]
[1751195332366,1.10956,108210.0,108200.0,0.0982]
[1751195334167,0.74876,108210.0,108200.0,0.0982]
[1751195334368,1.10956,108210.0,108200.0,0.0982]
[1751195335568,0.74876,108210.0,108200.0,0.0982]
[1751195335769,1.10956,108210.0,108200.0,0.0982]
[1751195338172,0.74876,108210.0,108200.0,0.0982]
[1751195338371,1.10956,108210.0,108200.0,0.0982]
[1751195344272,1.10956,108210.0,108200.0,0.12593354]
[1751195347477,1.21417239,108210.0,108200.0,0.02973354]
[1751195349281,1.21417239,108210.0,108200.0,0.06183354]
[1751195349579,1.21417239,108210.0,108200.0,0.0341]
[1751195355585,0.85337239,108210.0,108200.0,0.0341]
[1751195355785,1.21417239,108210.0,108200.0,0.0341]
[1751195356381,1.15057239,108210.0,108200.0,0.0341]
[1751195356582,1.04596,108210.0,108200.0,0.0976]
[1751195359483,1.04596,108210.0,108200.0,0.12533354]
[1751195359882,0.12768,108210.0,108200.0,0.50263314]
[1751195360081,0.6852,108210.0,108200.0,0.50263314]
[1751195360787,0.6852,108210.0,108200.0,0.51707967]
[1751195360981,0.92656,108220.0,108200.0,0.7896112]
[1751195361182,0.4653322,108240.0,108210.0,0.48443354]
[1751195361489,0.6852,108230.0,108220.0,0.0645]
[1751195362281,0.3608,108240.0,108220.0,0.4253]
[1751195362486,0.91836,108240.0,108230.0,0.0961]
[1751195362688,0.48848,108240.0,108230.0,0.0961]
[1751195362886,1.04632,108240.0,108230.0,0.0961]
[1751195364082,1.0559851,108240.0,108230.0,0.0961]
[1751195364388,0.48848,108240.0,108230.0,0.0961]
[1751195364587,0.12768,108240.0,108230.0,0.4569]
[1751195364987,0.13068,108240.0,108230.0,0.4569]
[1751195365687,0.13468,108240.0,108230.0,0.4569]
[1751195367187,0.004,108240.0,108230.0,0.4569]
[1751195367481,0.68976,108240.0,108230.0,0.4569]
[1751195367986,0.68976,108240.0,108230.0,0.4579]
[1751195368188,0.68576,108240.0,108230.0,0.4579]
[1751195368385,0.68576,108240.0,108230.0,0.4589]
[1751195371090,0.68576,108240.0,108230.0,0.0981]
[1751195371387,0.68576,108240.0,108230.0,0.4589]
[1751195371885,0.68576,108240.0,108230.0,0.0981]
[1751195372078,0.68576,108240.0,108230.0,0.4589]
[1751195374084,0.68576,108240.0,108230.0,0.0981]
[1751195374281,0.68576,108240.0,108230.0,0.4589]
[1751195375085,0.68576,108240.0,108230.0,0.0981]
[1751195375285,0.68576,108240.0,108230.0,0.4589]
[1751195375991,0.68576,108240.0,108230.0,0.0981]
[1751195376299,0.68576,108240.0,108230.0,0.4589]
[1751195376993,0.68576,108240.0,108230.0,0.0981]
[1751195377188,0.68576,108240.0,108230.0,0.4589]
[1751195377388,0.71876,108240.0,108230.0,0.4589]
[1751195382697,0.75116,108240.0,108230.0,0.4589]
[1751195383297,0.75116,108240.0,108230.0,0.0981]
[1751195383498,0.75116,108240.0,108230.0,0.4589]
[1751195388904,0.75116,108240.0,108230.0,0.0981]
[1751195389106,0.75116,108240.0,108230.0,0.4589]
[1751195390501,0.62348,108240.0,108230.0,0.4589]
[1751195390705,0.7508,108240.0,108230.0,0.4589]
[1751195396217,0.7508,108240.0,108230.0,0.48663354]
[1751195397921,0.7508,108240.0,108230.0,0.12583354]
[1751195398126,0.7508,108240.0,108230.0,0.48663354]
[1751195406331,0.7184,108240.0,108230.0,0.48663354]
[1751195408226,0.68536,108240.0,108230.0,0.48663354]
[1751195412926,0.68536,108240.0,108230.0,0.12583354]
[1751195413127,0.68536,108240.0,108230.0,0.48663354]
[1751195422142,0.68536,108240.0,108230.0,0.12583354]
[1751195422444,0.68536,108240.0,108230.0,0.48663354]
[1751195424644,0.68536,108240.0,108230.0,0.12583354]
[1751195424944,0.68536,108240.0,108230.0,0.48663354]
[1751195425149,0.68536,108240.0,108230.0,0.12583354]
[1751195425444,0.68536,108240.0,108230.0,0.48663354]
[1751195430151,0.68536,108240.0,108230.0,0.4589]
[1751195433248,0.68536,108240.0,108230.0,0.0981]
[1751195433442,0.68536,108240.0,108230.0,0.4589]
[1751195435044,0.68536,108240.0,108230.0,0.0981]
[1751195435545,0.68536,108240.0,108230.0,0.4589]
[1751195436144,0.68536,108240.0,108230.0,0.0981]
[1751195436344,0.68536,108240.0,108230.0,0.4589]
[1751195437146,0.68536,108240.0,108230.0,0.0981]
[1751195437349,0.68536,108240.0,108230.0,0.4589]
[1751195438238,0.1278,108240.0,108230.0,0.4589]
[1751195440244,0.1278,108240.0,108230.0,0.48663354]
[1751195440446,0.46528128,108250.0,108230.0,0.48663354]
[1751195440744,0.12772,108240.0,108230.0,0.48663354]
[1751195441649,0.12772,108240.0,108230.0,0.48563354]
[1751195442046,0.12772,108240.0,108230.0,0.48663354]
[1751195442447,0.12772,108240.0,108230.0,0.48563354]
[1751195443252,0.12772,108240.0,108230.0,0.48663354]
[1751195446252,0.12772,108240.0,108230.0,0.12583354]
[1751195446453,0.12772,108240.0,108230.0,0.48663354]
[1751195449259,0.12772,108240.0,108230.0,0.12583354]
[1751195449458,0.12772,108240.0,108230.0,0.48663354]
[1751195449651,0.12772,108240.0,108230.0,0.12583354]
[1751195449852,0.12772,108240.0,108230.0,0.48663354]
[1751195450051,0.12772,108240.0,108230.0,0.12583354]
[1751195450255,0.12772,108240.0,108230.0,0.48663354]
[1751195450954,0.12772,108240.0,108230.0,0.12583354]
[1751195451157,0.12772,108240.0,108230.0,0.48663354]
[1751195457057,0.12772,108240.0,108230.0,0.12583354]
[1751195457454,0.12772,108240.0,108230.0,0.48663354]
[1751195464061,0.12772,108240.0,108230.0,0.12583354]
[1751195464262,0.12772,108240.0,108230.0,0.48663354]
[1751195465158,0.12772,108240.0,108230.0,0.12583354]
[1751195465566,0.12772,108240.0,108230.0,0.48663354]
[1751195466557,0.12772,108240.0,108230.0,0.12583354]
[1751195466757,0.12772,108240.0,108230.0,0.48663354]
[1751195467560,0.12772,108240.0,108230.0,0.12583354]
[1751195467758,0.12772,108240.0,108230.0,0.48663354]
[1751195470371,0.12772,108240.0,108230.0,0.4589]
[1751195471064,0.12772,108240.0,108230.0,0.0981]
[1751195471763,0.12772,108240.0,108230.0,0.4589]
[1751195473975,0.12772,108240.0,108230.0,0.0981]
[1751195474472,0.12772,108240.0,108230.0,0.4589]
[1751195476071,0.12772,108240.0,108230.0,0.0981]
[1751195476363,0.12772,108240.0,108230.0,0.4589]
[1751195478172,0.12772,108240.0,108230.0,0.0981]
[1751195478371,0.12772,108240.0,108230.0,0.4589]
[1751195478565,0.12772,108240.0,108230.0,0.0981]
[1751195478766,0.12772,108240.0,108230.0,0.4589]
[1751195479080,0.18902,108240.0,108230.0,0.0336]
[1751195479377,0.22162,108240.0,108230.0,0.0336]
[1751195480375,0.22162,108240.0,108230.0,0.06133354]
[1751195489686,0.58242,108240.0,108230.0,0.002]
[1751195489887,0.68050331,108240.0,108230.0,0.002]
[1751195490279,2.18050331,108240.0,108230.0,0.002]
[1751195490890,2.18250331,108240.0,108230.0,0.001]
[1751195491083,2.18450331,108240.0,108220.0,0.11873354]
[1751195491387,0.61928,108230.0,108220.0,0.11873354]
[1751195493786,0.62028,108230.0,108220.0,0.11873354]
[1751195496089,0.62028,108230.0,108220.0,0.05803354]
[1751195500294,0.62028,108230.0,108220.0,0.0950116]
[1751195503993,0.62028,108230.0,108220.0,0.05803354]
[1751195507390,0.65188,108230.0,108220.0,0.05803354]
[1751195508689,0.62028,108230.0,108220.0,0.05803354]
[1751195508894,1.08519391,108230.0,108210.0,0.0647116]
[1751195509096,0.19374,108220.0,108210.0,0.0647116]
[1751195509288,0.58484,108220.0,108210.0,0.02773354]
[1751195509490,0.68895391,108220.0,108210.0,0.02773354]
[1751195510495,2.18895391,108220.0,108210.0,0.02773354]
[1751195510989,2.18895391,108220.0,108210.0,0.002]
[1751195511696,2.18995391,108220.0,108210.0,0.001]
[1751195515198,2.18995391,108220.0,108200.0,0.12523354]
[1751195515401,0.55732,108210.0,108200.0,0.12523354]
[1751195516896,0.55732,108210.0,108200.0,0.12623354]
[1751195517103,0.55732,108210.0,108200.0,0.12723354]
[1751195519205,0.55732,108210.0,108200.0,0.0995]
[1751195543225,0.55732,108210.0,108200.0,0.0985]
[1751195543429,0.55832,108210.0,108200.0,0.0975]
[1751195546126,0.55832,108210.0,108200.0,0.12516565]
[1751195546627,0.62072,108210.0,108200.0,0.12516565]
[1751195563050,0.74832,108210.0,108200.0,0.12516565]
[1751195573358,0.74832,108210.0,108200.0,0.0975]
[1751195583372,0.74832,108210.0,108200.0,0.12516565]
[1751195587671,0.74832,108210.0,108200.0,0.09206565]
[1751195591777,0.74832,108210.0,108200.0,0.12526565]
[1751195607892,0.74832,108210.0,108200.0,0.09206565]
[1751195613396,0.74832,108210.0,108200.0,0.0644]
[1751195623401,0.74832,108210.0,108200.0,0.09206565]
[1751195640510,0.74832,108210.0,108200.0,0.12246565]
[1751195641819,0.74812,108210.0,108200.0,0.12246565]
[1751195655126,0.84791607,108210.0,108200.0,0.05926565]
[1751195660042,1.17801607,108210.0,108190.0,0.06547745]
[1751195660236,0.0629,108200.0,108190.0,0.06547745]
[1751195660437,0.0945,108200.0,108190.0,0.06547745]
[1751195660633,0.0945,108200.0,108190.0,0.00092426]
[1751195661245,0.0945,108200.0,108190.0,0.00192426]
[1751195661541,0.19818736,108200.0,108190.0,0.00192426]
[1751195662743,0.19818736,108200.0,108190.0,0.00292426]
[1751195664144,0.20766986,108200.0,108190.0,0.00292426]
[1751195664644,0.20766986,108200.0,108190.0,0.03552426]
[1751195669747,0.20966986,108200.0,108190.0,0.03452426]
[1751195669947,0.21166986,108200.0,108190.0,0.03352426]
[1751195671448,0.21066986,108200.0,108190.0,0.03352426]
[1751195673650,0.17906986,108200.0,108190.0,0.03352426]
[1751195673850,0.17706986,108200.0,108190.0,0.03352426]
[1751195674053,0.17706986,108200.0,108190.0,0.06402426]
[1751195675352,0.24164986,108200.0,108190.0,0.45762426]
[1751195675553,0.6950825,108200.0,108190.0,0.45762426]
[1751195676149,0.0104825,108200.0,108190.0,0.45762426]
[1751195676355,0.6950825,108200.0,108190.0,0.45762426]
[1751195677854,0.6940825,108200.0,108190.0,0.45762426]
[1751195678155,0.6950825,108200.0,108190.0,0.09682426]
[1751195678356,0.6950825,108200.0,108190.0,0.45762426]
[1751195683555,0.6950825,108200.0,108190.0,0.09682426]
[1751195683753,0.6950825,108200.0,108190.0,0.45762426]
[1751195684158,0.6950825,108200.0,108190.0,0.09682426]
[1751195684358,0.6950825,108200.0,108190.0,0.45762426]
[1751195688764,0.6950825,108200.0,108190.0,0.48534499]
[1751195689056,0.6950825,108200.0,108190.0,0.12454499]
[1751195689462,0.6950825,108200.0,108190.0,0.48534499]
[1751195690165,0.6950825,108200.0,108190.0,0.12454499]
[1751195690464,0.6950825,108200.0,108190.0,0.48534499]
[1751195690654,0.6950825,108200.0,108190.0,0.12454499]
[1751195690860,0.6950825,108200.0,108190.0,0.48534499]
[1751195691964,0.6950825,108200.0,108190.0,0.45762426]
[1751195696971,0.6950825,108200.0,108190.0,0.09682426]
[1751195697174,0.6950825,108200.0,108190.0,0.45762426]
[1751195700976,0.7274825,108200.0,108190.0,0.45762426]
[1751195702070,0.7274825,108200.0,108190.0,0.48534499]
[1751195702974,0.7274825,108200.0,108190.0,0.12454499]
[1751195703178,0.7274825,108200.0,108190.0,0.48534499]
[1751195704973,0.7274825,108200.0,108190.0,0.12454499]
[1751195705168,0.7274825,108200.0,108190.0,0.48534499]
[1751195705376,0.7274825,108200.0,108190.0,0.52230596]
[1751195707070,0.7605825,108200.0,108190.0,0.52230596]
[1751195707277,0.7605825,108200.0,108190.0,0.12454499]
[1751195715684,0.7604225,108200.0,108190.0,0.12454499]
[1751195716587,0.7273225,108200.0,108190.0,0.12454499]
[1751195726395,0.0428825,108200.0,108190.0,0.12454499]
[1751195726596,0.6948825,108200.0,108190.0,0.48534499]
[1751195727394,0.6948825,108200.0,108190.0,0.52230596]
[1751195728293,0.6938825,108200.0,108190.0,0.52330596]
[1751195729294,0.6938825,108200.0,108190.0,0.52430596]
[1751195731194,0.6938825,108200.0,108190.0,0.16350596]
[1751195731391,0.6938825,108200.0,108190.0,0.52430596]
[1751195732094,0.6938825,108200.0,108190.0,0.45962426]
[1751195734297,0.6938825,108200.0,108190.0,0.48734499]
[1751195735897,0.0094825,108200.0,108190.0,0.48734499]
[1751195736096,0.68432,108200.0,108190.0,0.48734499]
[1751195737895,0.68432,108200.0,108190.0,0.12654499]
[1751195738096,0.68432,108200.0,108190.0,0.48734499]
[1751195738898,0.68432,108200.0,108190.0,0.12654499]
[1751195739198,0.68432,108200.0,108190.0,0.48734499]
[1751195739395,0.69352627,108200.0,108190.0,0.48734499]
[1751195739600,0.75952627,108200.0,108190.0,0.45684499]
[1751195742001,0.75952627,108200.0,108190.0,0.13300596]
[1751195742205,0.75952627,108200.0,108190.0,0.49380596]
[1751195745504,0.75952627,108200.0,108190.0,0.52610596]
[1751195747106,0.75952627,108200.0,108190.0,0.16530596]
[1751195747407,0.75952627,108200.0,108190.0,0.52610596]
[1751195749501,0.75952627,108200.0,108190.0,0.54288787]
[1751195750206,0.75952627,108200.0,108190.0,0.18208787]
[1751195750403,0.75952627,108200.0,108190.0,0.54288787]
[1751195751104,0.75952627,108200.0,108190.0,0.18208787]
[1751195751304,0.75952627,108200.0,108190.0,0.54288787]
[1751195752909,0.75952627,108200.0,108190.0,0.18208787]
[1751195753110,0.75952627,108200.0,108190.0,0.54288787]
[1751195754913,0.75952627,108200.0,108190.0,0.18208787]
[1751195755117,0.75952627,108200.0,108190.0,0.54288787]
[1751195757915,0.75952627,108200.0,108190.0,0.18208787]
[1751195758118,0.75952627,108200.0,108190.0,0.54288787]
[1751195762221,0.07520627,108200.0,108190.0,0.54288787]
[1751195762417,0.75940627,108200.0,108190.0,0.54288787]
[1751195762723,0.75940627,108200.0,108190.0,0.51058787]